[Event "Championnat d'Europe Rapide"]
[Date "2024.12.07"]
[White "Mcgowan, Daniel"]
[Black "Kilic, Eray"]
[WhiteElo "2089"]
[BlackElo "2459"]
[Round "2.51"]
[Result "0-1"]
[TimeControl "900+10"]

1. e4 {[%emt 00:00:03] [%clk 00:15:17]} c5 {[%emt 00:00:04] [%clk 00:15:16]} 2.
Nf3 {[%emt 00:00:03] [%clk 00:15:24]} Nc6 {[%emt 00:00:03] [%clk 00:15:24]} 3.
c3 {[%emt 00:00:19] [%clk 00:15:15]} d5 {[%emt 00:00:09] [%clk 00:15:24]} 4.
exd5 {[%emt 00:01:02] [%clk 00:14:23]} Qxd5 {[%emt 00:00:02] [%clk 00:15:31]} 5.
d4 {[%emt 00:00:03] [%clk 00:14:31]} Bg4 {[%emt 00:00:02] [%clk 00:15:39]} 6.
Be2 {[%emt 00:00:10] [%clk 00:14:30]} e6 {[%emt 00:00:06] [%clk 00:15:44]} 7. h3
{[%emt 00:00:55] [%clk 00:13:45]} Bh5 {[%emt 00:00:09] [%clk 00:15:44]} 8. O-O
{[%emt 00:00:11] [%clk 00:13:44]} Nf6 {[%emt 00:00:03] [%clk 00:15:52]} 9. Be3
{[%emt 00:00:11] [%clk 00:13:43]} cxd4 {[%emt 00:00:03] [%clk 00:16:00]} 10.
Nxd4 {[%emt 00:00:17] [%clk 00:13:36]} Bxe2 {[%emt 00:00:16] [%clk 00:15:54]}
11. Qxe2 {[%emt 00:00:03] [%clk 00:13:42]} Be7 {[%emt 00:00:03] [%clk 00:16:01]}
12. Nd2 {[%emt 00:00:15] [%clk 00:13:38]} O-O {[%emt 00:00:03] [%clk 00:16:08]}
13. Rfd1 {[%emt 00:00:48] [%clk 00:12:59]} Rfd8 {[%emt 00:00:08] [%clk
00:16:10]} 14. N2b3 {[%emt 00:00:52] [%clk 00:12:17]} e5 {[%emt 00:00:58] [%clk
00:15:22]} 15. Nf5 {[%emt 00:00:58] [%clk 00:11:29]} Qe4 {[%emt 00:00:51] [%clk
00:14:40]} 16. Ng3 {[%emt 00:01:41] [%clk 00:09:58]} Qg6 {[%emt 00:01:40] [%clk
00:13:09]} 17. Qb5 {[%emt 00:00:12] [%clk 00:09:57]} Rab8 {[%emt 00:00:49] [%clk
00:12:30]} 18. Rxd8+ {[%emt 00:00:31] [%clk 00:09:36]} Bxd8 {[%emt 00:00:01]
[%clk 00:12:39]} 19. Rd1 {[%emt 00:01:48] [%clk 00:07:57]} h5 {[%emt 00:00:46]
[%clk 00:12:03]} 20. Qe2 {[%emt 00:01:12] [%clk 00:06:56]} h4 {[%emt 00:00:22]
[%clk 00:11:51]} 21. Nf1 {[%emt 00:00:03] [%clk 00:07:02]} Bc7 {[%emt 00:00:02]
[%clk 00:12:00]} 22. Nc5 {[%emt 00:00:49] [%clk 00:06:22]} e4 {[%emt 00:01:57]
[%clk 00:10:14]} 23. Nd7 {[%emt 00:02:54] [%clk 00:03:38]} Nxd7 {[%emt 00:00:02]
[%clk 00:10:22]} 24. Rxd7 {[%emt 00:00:02] [%clk 00:03:46]} Rc8 {[%emt 00:00:04]
[%clk 00:10:29]} 25. Qb5 {[%emt 00:01:36] [%clk 00:02:19]} Qe6 {[%emt 00:01:06]
[%clk 00:09:32]} 26. Qd5 {[%emt 00:00:32] [%clk 00:01:58]} Qe8 {[%emt 00:00:30]
[%clk 00:09:11]} 27. Qd1 {[%emt 00:00:15] [%clk 00:01:53]} Ne5 {[%emt 00:02:14]
[%clk 00:07:08]} 28. Rd4 {[%emt 00:00:33] [%clk 00:01:29]} f5 {[%emt 00:00:39]
[%clk 00:06:39]} 29. Qb3+ {[%emt 00:00:24] [%clk 00:01:16]} Kh7 {[%emt 00:00:01]
[%clk 00:06:47]} 30. Qxb7 {[%emt 00:00:30] [%clk 00:00:56]} Nd3 {[%emt 00:00:03]
[%clk 00:06:54]} 31. Qd5 {[%emt 00:00:26] [%clk 00:00:40]} Be5 {[%emt 00:00:14]
[%clk 00:06:49]} 32. Rc4 {[%emt 00:00:29] [%clk 00:00:22]} Rd8 {[%emt 00:00:16]
[%clk 00:06:43]} 33. Qa5 {[%emt 00:00:11] [%clk 00:00:22]} Nxb2 {[%emt 00:00:23]
[%clk 00:06:30]} 34. Rc5 {[%emt 00:00:13] [%clk 00:00:20]} Nd3 {[%emt 00:00:02]
[%clk 00:06:39]} 35. Rb5 {[%emt 00:00:13] [%clk 00:00:16]} Bxc3 {[%emt 00:00:19]
[%clk 00:06:30]} 36. Qa6 {[%emt 00:00:12] [%clk 00:00:15]} Be5 {[%emt 00:00:24]
[%clk 00:06:15]} 37. Rb7 {[%emt 00:00:07] [%clk 00:00:18]} Rd6 {[%emt 00:00:06]
[%clk 00:06:19]} 38. Qxa7 {[%emt 00:00:05] [%clk 00:00:24]} f4 {[%emt 00:00:16]
[%clk 00:06:13]} 39. Bb6 {[%emt 00:00:05] [%clk 00:00:29]} Qg6 {[%emt 00:00:06]
[%clk 00:06:17]} 40. Qa8 {[%emt 00:00:28] [%clk 00:00:11]} f3 {[%emt 00:00:35]
[%clk 00:05:51]} 41. Ne3 {[%emt 00:00:01] [%clk 00:00:19]} Nc5 {[%emt 00:00:24]
[%clk 00:05:37]} 42. Rb8 {[%emt 00:00:18] [%clk 00:00:11]} Qxg2+ {[%emt
00:00:13] [%clk 00:05:35]} 43. Nxg2 {[%emt 00:00:07] [%clk 00:00:14]} Rd1+
{[%emt 00:00:01] [%clk 00:05:43]} 44. Ne1 {[%emt 00:00:03] [%clk 00:00:21]}
Rxe1# {[%emt 00:00:02] [%clk 00:05:51]} 0-1

[Site "Europe Echecs"]

[Event "Championnat d'Europe Rapide"]
[Date "2024.12.07"]
[White "Samunenkov, Ihor"]
[Black "Aliyev, Elnur"]
[WhiteElo "2543"]
[BlackElo "2079"]
[Round "2.52"]
[Result "1-0"]
[TimeControl "900+10"]

1. d4 {[%emt 00:00:02] [%clk 00:15:16]} Nf6 {[%emt 00:00:03] [%clk 00:15:17]} 2.
c4 {[%emt 00:00:04] [%clk 00:15:23]} e6 {[%emt 00:00:05] [%clk 00:15:21]} 3. Nf3
{[%emt 00:00:04] [%clk 00:15:29]} Nc6 {[%emt 00:00:16] [%clk 00:15:15]} 4. a3
{[%emt 00:00:32] [%clk 00:15:07]} d5 {[%emt 00:01:00] [%clk 00:14:24]} 5. Nc3
{[%emt 00:00:27] [%clk 00:14:50]} a6 {[%emt 00:00:12] [%clk 00:14:22]} 6. e3
{[%emt 00:03:10] [%clk 00:11:51]} g6 {[%emt 00:00:12] [%clk 00:14:20]} 7. b3
{[%emt 00:00:49] [%clk 00:11:13]} Bg7 {[%emt 00:00:04] [%clk 00:14:25]} 8. Bb2
{[%emt 00:00:05] [%clk 00:11:19]} O-O {[%emt 00:00:19] [%clk 00:14:16]} 9. Bd3
{[%emt 00:00:05] [%clk 00:11:25]} b6 {[%emt 00:01:32] [%clk 00:12:52]} 10. O-O
{[%emt 00:01:00] [%clk 00:10:36]} Bb7 {[%emt 00:00:16] [%clk 00:12:46]} 11. Rc1
{[%emt 00:00:09] [%clk 00:10:38]} dxc4 {[%emt 00:00:56] [%clk 00:12:00]} 12.
bxc4 {[%emt 00:00:24] [%clk 00:10:24]} Na5 {[%emt 00:01:15] [%clk 00:10:54]} 13.
e4 {[%emt 00:02:59] [%clk 00:07:36]} Nh5 {[%emt 00:02:41] [%clk 00:08:23]} 14.
g3 {[%emt 00:00:44] [%clk 00:07:03]} f5 {[%emt 00:01:28] [%clk 00:07:04]} 15.
exf5 {[%emt 00:02:16] [%clk 00:04:57]} exf5 {[%emt 00:00:02] [%clk 00:07:12]}
16. d5 {[%emt 00:00:03] [%clk 00:05:04]} c6 {[%emt 00:00:14] [%clk 00:07:08]}
17. Be2 {[%emt 00:01:09] [%clk 00:04:04]} cxd5 {[%emt 00:01:06] [%clk 00:06:13]}
18. cxd5 {[%emt 00:00:02] [%clk 00:04:12]} Rc8 {[%emt 00:00:37] [%clk 00:05:45]}
19. Nd4 {[%emt 00:00:44] [%clk 00:03:38]} Bxd4 {[%emt 00:02:49] [%clk 00:03:06]}
20. Qxd4 {[%emt 00:00:06] [%clk 00:03:42]} Nb3 {[%emt 00:00:09] [%clk 00:03:07]}
21. Qb4 {[%emt 00:01:24] [%clk 00:02:29]} Nxc1 {[%emt 00:00:09] [%clk 00:03:07]}
22. Rxc1 {[%emt 00:00:03] [%clk 00:02:36]} Nf6 {[%emt 00:00:46] [%clk 00:02:31]}
23. Rd1 {[%emt 00:00:03] [%clk 00:02:43]} b5 {[%emt 00:00:45] [%clk 00:01:57]}
24. a4 {[%emt 00:00:19] [%clk 00:02:34]} f4 {[%emt 00:00:52] [%clk 00:01:15]}
25. axb5 {[%emt 00:01:03] [%clk 00:01:41]} fxg3 {[%emt 00:00:02] [%clk
00:01:22]} 26. hxg3 {[%emt 00:00:03] [%clk 00:01:48]} axb5 {[%emt 00:00:09]
[%clk 00:01:24]} 27. Qd4 {[%emt 00:00:54]} Qd6 {[%clk 00:00:58]} 28. Ne4 {[%emt
00:00:17] [%clk 00:01:32]} Qxd5 {[%emt 00:00:49] [%clk 00:00:20]} 29. Nxf6+
{[%emt 00:00:06] [%clk 00:01:34]} Rxf6 {[%emt 00:00:02] [%clk 00:00:29]} 30.
Qxd5+ {[%emt 00:00:03] [%clk 00:01:41]} Bxd5 {[%clk 00:00:38]} 31. Bxf6 {[%emt
00:00:03] [%clk 00:01:47]} Bc4 {[%emt 00:00:31] [%clk 00:00:17]} 32. Bxc4+
{[%emt 00:00:14] [%clk 00:01:43]} bxc4 {[%emt 00:00:14] [%clk 00:00:13]} 33. Bc3
{[%emt 00:00:02] [%clk 00:01:51]} Kf7 {[%emt 00:00:09] [%clk 00:00:14]} 34. Rd7+
{[%emt 00:00:14] [%clk 00:01:47]} Ke6 {[%clk 00:00:24]} 35. Rxh7 {[%emt
00:00:03] [%clk 00:01:54]} Rb8 {[%emt 00:00:10] [%clk 00:00:24]} 36. Rc7 {[%emt
00:00:23] [%clk 00:01:41]} Kd5 {[%emt 00:00:02] [%clk 00:00:33]} 37. Re7 {[%emt
00:00:08] [%clk 00:01:42]} Rb3 {[%emt 00:00:08] [%clk 00:00:36]} 38. Re3 {[%emt
00:00:17] [%clk 00:01:34]} g5 {[%emt 00:00:21] [%clk 00:00:25]} 39. g4 {[%emt
00:00:07] [%clk 00:01:37]} Kc5 {[%emt 00:00:18] [%clk 00:00:18]} 40. Kg2 {[%emt
00:00:12] [%clk 00:01:34]} Rb1 {[%emt 00:00:15] [%clk 00:00:14]} 41. Re5+ {[%emt
00:00:04] [%clk 00:01:40]} Kc6 {[%emt 00:00:05] [%clk 00:00:18]} 42. Rxg5 {[%emt
00:00:03] [%clk 00:01:47]} Rc1 {[%emt 00:00:01] [%clk 00:00:27]} 43. Bd4 {[%emt
00:00:03] [%clk 00:01:53]} Kd6 {[%emt 00:00:23] [%clk 00:00:14]} 44. Bc5+ {[%emt
00:00:04] [%clk 00:01:59]} Ke6 {[%emt 00:00:01] [%clk 00:00:23]} 45. Be3 {[%emt
00:00:02] [%clk 00:02:06]} Rd1 {[%emt 00:00:20] [%clk 00:00:13]} 46. Rc5 {[%emt
00:00:03] [%clk 00:02:13]} 1-0

[Site "Europe Echecs"]

[Event "Championnat d'Europe Rapide"]
[Date "2024.12.07"]
[White "Alienkin, Aleksander"]
[Black "Nikolaev, Georgi"]
[WhiteElo "2337"]
[BlackElo "2032"]
[Round "2.53"]
[Result "1-0"]
[TimeControl "900+10"]

1. d4 {[%emt 00:00:04] [%clk 00:15:15]} d5 {[%emt 00:00:13] [%clk 00:15:08]} 2.
c4 {[%emt 00:00:05] [%clk 00:15:19]} e6 {[%emt 00:00:02] [%clk 00:15:16]} 3. Nf3
{[%emt 00:00:05] [%clk 00:15:24]} Nf6 {[%emt 00:00:12] [%clk 00:15:14]} 4. g3
{[%emt 00:00:05] [%clk 00:15:29]} Be7 {[%emt 00:00:03] [%clk 00:15:20]} 5. Bg2
{[%emt 00:00:06] [%clk 00:15:33]} O-O {[%emt 00:00:04] [%clk 00:15:27]} 6. Qc2
{[%emt 00:00:09] [%clk 00:15:34]} c5 {[%emt 00:00:27] [%clk 00:15:10]} 7. cxd5
{[%emt 00:01:33] [%clk 00:14:11]} Qxd5 {[%emt 00:02:52] [%clk 00:12:28]} 8. Nc3
{[%emt 00:00:20] [%clk 00:14:01]} Qh5 {[%emt 00:00:27] [%clk 00:12:10]} 9. h3
{[%emt 00:03:22] [%clk 00:10:50]} Nc6 {[%emt 00:01:29] [%clk 00:10:51]} 10. Be3
{[%emt 00:02:41] [%clk 00:08:18]} cxd4 {[%emt 00:06:01] [%clk 00:05:01]} 11.
Nxd4 {[%emt 00:00:28] [%clk 00:07:59]} Bd7 {[%emt 00:00:08] [%clk 00:05:03]} 12.
g4 {[%emt 00:02:45] [%clk 00:05:24]} Qe5 {[%emt 00:01:28] [%clk 00:03:43]} 13.
Nf3 {[%emt 00:00:14] [%clk 00:05:21]} Qc7 {[%emt 00:00:56] [%clk 00:02:57]} 14.
O-O {[%emt 00:00:13] [%clk 00:05:17]} Nb4 {[%emt 00:00:11] [%clk 00:02:57]} 15.
Qb3 {[%emt 00:00:28] [%clk 00:04:59]} Bc6 {[%emt 00:00:32] [%clk 00:02:35]} 16.
Rac1 {[%emt 00:00:29] [%clk 00:04:40]} Qa5 {[%emt 00:00:57] [%clk 00:01:49]} 17.
a3 {[%emt 00:00:19] [%clk 00:04:30]} Nbd5 {[%emt 00:00:08] [%clk 00:01:51]} 18.
Bd2 {[%emt 00:00:14] [%clk 00:04:26]} Qb6 {[%emt 00:00:48] [%clk 00:01:15]} 19.
Qxb6 {[%emt 00:00:17] [%clk 00:04:18]} Nxb6 {[%emt 00:00:05] [%clk 00:01:21]}
20. Ne5 {[%emt 00:00:49] [%clk 00:03:37]} Bxg2 {[%emt 00:00:04] [%clk 00:01:28]}
21. Kxg2 {[%clk 00:03:46]} Bd6 {[%emt 00:00:30] [%clk 00:01:09]} 22. Nd3 {[%emt
00:00:03] [%clk 00:03:51]} a6 {[%emt 00:00:26] [%clk 00:00:55]} 23. Bg5 {[%emt
00:00:12] [%clk 00:03:47]} Rac8 {[%emt 00:00:34] [%clk 00:00:33]} 24. Bxf6
{[%emt 00:00:23] [%clk 00:03:33]} gxf6 {[%emt 00:00:01] [%clk 00:00:42]} 25.
Rfd1 {[%emt 00:00:23] [%clk 00:03:19]} Be7 {[%emt 00:00:27] [%clk 00:00:27]} 26.
Ne4 {[%emt 00:00:11] [%clk 00:03:17]} Rxc1 {[%emt 00:00:15] [%clk 00:00:23]} 27.
Rxc1 {[%emt 00:00:06] [%clk 00:03:20]} Rc8 {[%emt 00:00:01] [%clk 00:00:32]} 28.
Rxc8+ {[%emt 00:00:18] [%clk 00:03:13]} Nxc8 {[%clk 00:00:42]} 29. Kf3 {[%emt
00:00:12] [%clk 00:03:10]} b6 {[%emt 00:00:12] [%clk 00:00:41]} 30. Ke3 {[%emt
00:00:08] [%clk 00:03:11]} Kg7 {[%emt 00:00:03] [%clk 00:00:48]} 31. Kd4 {[%emt
00:00:09] [%clk 00:03:11]} Nd6 {[%emt 00:00:31] [%clk 00:00:28]} 32. Nxd6 {[%emt
00:00:23] [%clk 00:02:57]} Bxd6 {[%emt 00:00:01] [%clk 00:00:38]} 33. Ke4 {[%emt
00:00:11] [%clk 00:02:54]} Kg6 {[%emt 00:00:08] [%clk 00:00:42]} 34. f4 {[%emt
00:00:22] [%clk 00:02:41]} h5 {[%emt 00:00:21] [%clk 00:00:31]} 35. Kf3 {[%emt
00:00:15] [%clk 00:02:35]} e5 {[%emt 00:00:06] [%clk 00:00:36]} 36. f5+ {[%emt
00:00:56] [%clk 00:01:47]} Kg5 {[%emt 00:00:02] [%clk 00:00:43]} 37. Nf2 {[%emt
00:00:06] [%clk 00:01:52]} hxg4+ {[%emt 00:00:32] [%clk 00:00:22]} 38. hxg4
{[%emt 00:00:01] [%clk 00:02:01]} Be7 {[%emt 00:00:09] [%clk 00:00:24]} 39. Kg3
{[%emt 00:00:06] [%clk 00:02:04]} Kh6 {[%emt 00:00:12] [%clk 00:00:23]} 40. Ne4
{[%emt 00:00:06] [%clk 00:02:07]} Kg7 {[%emt 00:00:19] [%clk 00:00:15]} 41. a4
{[%emt 00:00:07] [%clk 00:02:09]} Bb4 {[%emt 00:00:05] [%clk 00:00:21]} 42. Kf3
{[%emt 00:00:08] [%clk 00:02:11]} Be7 {[%emt 00:00:18] [%clk 00:00:13]} 43. Ke3
{[%emt 00:00:05] [%clk 00:02:15]} Kf8 {[%emt 00:00:02] [%clk 00:00:22]} 44. Kd3
{[%emt 00:00:04] [%clk 00:02:21]} Ke8 {[%emt 00:00:02] [%clk 00:00:31]} 45. Kc4
{[%clk 00:02:30]} Kd7 {[%emt 00:00:09] [%clk 00:00:32]} 46. Kd5 {[%emt 00:00:01]
[%clk 00:02:38]} Kc7 {[%emt 00:00:11] [%clk 00:00:31]} 47. Nd2 {[%emt 00:00:27]
[%clk 00:02:20]} b5 {[%emt 00:00:03] [%clk 00:00:39]} 48. axb5 {[%emt 00:00:06]
[%clk 00:02:24]} axb5 {[%clk 00:00:49]} 49. Ne4 {[%emt 00:00:21] [%clk
00:02:13]} Kb6 {[%emt 00:00:02] [%clk 00:00:58]} 50. Nd6 {[%emt 00:00:16] [%clk
00:02:07]} Ka5 {[%emt 00:00:47] [%clk 00:00:22]} 51. Nxf7 {[%emt 00:00:05] [%clk
00:02:11]} Kb4 {[%emt 00:00:01] [%clk 00:00:31]} 52. Ke6 {[%emt 00:00:10] [%clk
00:02:11]} Bc5 {[%emt 00:00:05] [%clk 00:00:36]} 53. Kxf6 {[%emt 00:00:07] [%clk
00:02:13]} Bd4 {[%emt 00:00:07] [%clk 00:00:40]} 54. e4 {[%emt 00:00:08] [%clk
00:02:13]} Bxb2 {[%emt 00:00:02] [%clk 00:00:49]} 55. g5 {[%emt 00:00:17] [%clk
00:02:06]} 1-0

[Site "Europe Echecs"]

[Event "Championnat d'Europe Rapide"]
[Date "2024.12.07"]
[White "Kucharska, Honorata"]
[Black "Papasimakopoulos, Alexandros"]
[WhiteElo "2071"]
[BlackElo "2379"]
[Round "2.54"]
[Result "0-1"]
[TimeControl "900+10"]

1. e4 {[%emt 00:00:03] [%clk 00:15:18]} e6 {[%clk 00:15:19]} 2. d3 {[%emt
00:00:05] [%clk 00:15:22]} d5 {[%emt 00:00:02] [%clk 00:15:28]} 3. Nd2 {[%emt
00:00:01] [%clk 00:15:31]} c5 {[%emt 00:00:03] [%clk 00:15:35]} 4. Ngf3 {[%emt
00:00:05] [%clk 00:15:36]} Nc6 {[%emt 00:00:02] [%clk 00:15:43]} 5. g3 {[%emt
00:00:03] [%clk 00:15:43]} Nf6 {[%emt 00:00:02] [%clk 00:15:51]} 6. Bg2 {[%emt
00:00:01] [%clk 00:15:52]} h6 {[%emt 00:00:02] [%clk 00:15:59]} 7. O-O {[%emt
00:00:06] [%clk 00:15:55]} Be7 {[%emt 00:00:02] [%clk 00:16:07]} 8. Re1 {[%emt
00:00:15] [%clk 00:15:50]} b6 {[%emt 00:00:14] [%clk 00:16:04]} 9. Qe2 {[%emt
00:00:22] [%clk 00:15:38]} Bb7 {[%emt 00:00:04] [%clk 00:16:10]} 10. e5 {[%emt
00:00:25] [%clk 00:15:23]} Nd7 {[%emt 00:00:01] [%clk 00:16:19]} 11. Nf1 {[%emt
00:00:06] [%clk 00:15:27]} Qc7 {[%emt 00:00:02] [%clk 00:16:27]} 12. h4 {[%emt
00:01:17] [%clk 00:14:20]} g5 {[%emt 00:00:02] [%clk 00:16:35]} 13. hxg5 {[%emt
00:03:57] [%clk 00:10:33]} hxg5 {[%emt 00:00:01] [%clk 00:16:43]} 14. N1h2
{[%emt 00:00:17] [%clk 00:10:27]} O-O-O {[%emt 00:00:16] [%clk 00:16:37]} 15.
Ng4 {[%emt 00:00:20] [%clk 00:10:17]} Rh5 {[%emt 00:00:12] [%clk 00:16:34]} 16.
c3 {[%emt 00:00:19] [%clk 00:10:09]} d4 {[%emt 00:00:36] [%clk 00:16:08]} 17.
cxd4 {[%emt 00:01:07] [%clk 00:09:13]} Rdh8 {[%emt 00:00:01] [%clk 00:16:16]}
18. d5 {[%emt 00:00:22] [%clk 00:09:02]} Nd4 {[%emt 00:00:29] [%clk 00:15:56]}
19. Nxd4 {[%emt 00:00:21] [%clk 00:08:52]} cxd4 {[%emt 00:00:01] [%clk
00:16:04]} 20. Bd2 {[%emt 00:00:19] [%clk 00:08:43]} Kb8 {[%emt 00:00:03] [%clk
00:16:11]} 21. Rac1 {[%emt 00:00:10] [%clk 00:08:43]} Qd8 {[%emt 00:00:02] [%clk
00:16:19]} 22. f3 {[%emt 00:01:11] [%clk 00:07:42]} Bxd5 {[%emt 00:00:03] [%clk
00:16:26]} 23. a3 {[%emt 00:00:25] [%clk 00:07:27]} Nc5 {[%emt 00:00:54] [%clk
00:15:41]} 24. Bb4 {[%emt 00:00:49] [%clk 00:06:49]} Bb7 {[%emt 00:02:38] [%clk
00:13:12]} 25. Bxc5 {[%emt 00:02:01]} bxc5 {[%emt 00:00:09] [%clk 00:13:11]} 26.
Kf2 {[%emt 00:00:46] [%clk 00:04:25]} Qd5 {[%emt 00:00:06] [%clk 00:13:15]} 27.
Rc4 {[%emt 00:04:03] [%clk 00:00:32]} Qd8 {[%emt 00:00:47] [%clk 00:12:38]} 28.
b4 {[%emt 00:00:07] [%clk 00:00:36]} cxb4 {[%emt 00:00:08] [%clk 00:12:39]} 29.
axb4 {[%emt 00:00:01] [%clk 00:00:45]} Qb6 {[%emt 00:00:16] [%clk 00:12:32]} 30.
Rec1 {[%emt 00:00:21] [%clk 00:00:34]} Rc8 {[%emt 00:00:36] [%clk 00:12:06]} 31.
Rxc8+ {[%emt 00:00:02] [%clk 00:00:43]} Bxc8 {[%emt 00:00:01] [%clk 00:12:14]}
32. Qc2 {[%emt 00:00:28] [%clk 00:00:25]} Bb7 {[%emt 00:00:26] [%clk 00:11:58]}
33. b5 {[%emt 00:00:03] [%clk 00:00:32]} Rh8 {[%emt 00:00:09] [%clk 00:11:59]}
34. Qb3 {[%emt 00:00:14] [%clk 00:00:29]} a5 {[%emt 00:00:54] [%clk 00:11:15]}
35. Qb2 {[%emt 00:00:23] [%clk 00:00:16]} a4 {[%emt 00:00:36] [%clk 00:10:48]}
36. Kf1 {[%emt 00:00:04] [%clk 00:00:22]} a3 {[%emt 00:00:25] [%clk 00:10:34]}
37. Qb3 {[%emt 00:00:01] [%clk 00:00:31]} Qa5 {[%emt 00:00:08] [%clk 00:10:36]}
38. b6 {[%emt 00:00:27] [%clk 00:00:15]} Qb4 {[%emt 00:00:28] [%clk 00:10:17]}
39. Qxb4 {[%emt 00:00:03] [%clk 00:00:22]} Bxb4 {[%emt 00:00:03] [%clk
00:10:25]} 40. Nf6 {[%emt 00:00:04] [%clk 00:00:28]} Rd8 {[%emt 00:00:20] [%clk
00:10:14]} 41. Ke2 {[%emt 00:00:16] [%clk 00:00:22]} Bc3 {[%emt 00:00:02] [%clk
00:10:22]} 42. Rc2 {[%emt 00:00:13] [%clk 00:00:20]} Bb2 {[%emt 00:00:02] [%clk
00:10:29]} 43. Ne4 {[%emt 00:00:11] [%clk 00:00:19]} Bxe4 {[%emt 00:00:03] [%clk
00:10:36]} 44. fxe4 {[%emt 00:00:02] [%clk 00:00:28]} Rc8 {[%emt 00:00:05] [%clk
00:10:41]} 0-1

[Site "Europe Echecs"]

[Event "Championnat d'Europe Rapide"]
[Date "2024.12.07"]
[White "Schneider, Ilja"]
[Black "Navara, David"]
[WhiteElo "2414"]
[BlackElo "2665"]
[Round "3.1"]
[Result "0-1"]
[TimeControl "900+10"]

1. e4 {[%emt 00:00:04] [%clk 00:15:18]} c5 {[%emt 00:00:03] [%clk 00:15:16]} 2.
Nc3 {[%emt 00:00:01] [%clk 00:15:27]} d6 {[%emt 00:00:16] [%clk 00:15:11]} 3. d4
{[%emt 00:00:01] [%clk 00:15:36]} cxd4 {[%emt 00:00:04] [%clk 00:15:16]} 4. Qxd4
{[%emt 00:00:01] [%clk 00:15:45]} Nc6 {[%emt 00:00:10] [%clk 00:15:16]} 5. Qd2
{[%emt 00:00:02] [%clk 00:15:54]} Nf6 {[%emt 00:00:20] [%clk 00:15:05]} 6. b3
{[%emt 00:00:02] [%clk 00:16:02]} e6 {[%emt 00:00:02] [%clk 00:15:12]} 7. Bb2
{[%emt 00:00:02] [%clk 00:16:11]} d5 {[%emt 00:00:40] [%clk 00:14:43]} 8. exd5
{[%emt 00:00:01] [%clk 00:16:19]} exd5 {[%emt 00:00:02] [%clk 00:14:51]} 9.
O-O-O {[%emt 00:00:03] [%clk 00:16:27]} Be6 {[%emt 00:00:08] [%clk 00:14:53]}
10. Nge2 {[%emt 00:01:47] [%clk 00:14:49]} Qa5 {[%emt 00:01:29] [%clk 00:13:34]}
11. Kb1 {[%emt 00:01:01] [%clk 00:13:58]} Bb4 {[%emt 00:02:40] [%clk 00:11:04]}
12. a3 {[%emt 00:01:03] [%clk 00:13:06]} Bxa3 {[%emt 00:00:20] [%clk 00:10:53]}
13. Nxd5 {[%emt 00:00:28] [%clk 00:12:48]} Bxb2 {[%emt 00:00:59] [%clk
00:10:04]} 14. Qxa5 {[%emt 00:00:03] [%clk 00:12:55]} Nxa5 {[%emt 00:00:02]
[%clk 00:10:12]} 15. Nc7+ {[%emt 00:00:10] [%clk 00:12:55]} Ke7 {[%emt 00:00:01]
[%clk 00:10:21]} 16. Kxb2 {[%emt 00:00:13] [%clk 00:12:53]} Rac8 {[%emt
00:01:11] [%clk 00:09:19]} 17. Nxe6 {[%emt 00:00:08] [%clk 00:12:55]} fxe6
{[%emt 00:00:02] [%clk 00:09:26]} 18. Ng3 {[%emt 00:01:25] [%clk 00:11:41]} Nc6
{[%emt 00:01:44] [%clk 00:07:52]} 19. Bd3 {[%emt 00:00:09] [%clk 00:11:42]} Rhd8
{[%emt 00:00:41] [%clk 00:07:21]} 20. Rhe1 {[%emt 00:02:11] [%clk 00:09:41]} Nb4
{[%emt 00:00:02] [%clk 00:07:29]} 21. Nf5+ {[%emt 00:00:54] [%clk 00:08:57]} Kf7
{[%emt 00:00:01] [%clk 00:07:37]} 22. Bc4 {[%emt 00:00:01] [%clk 00:09:07]} Rxc4
{[%emt 00:00:06] [%clk 00:07:41]} 23. Rxd8 {[%emt 00:00:03] [%clk 00:09:13]}
Rxc2+ {[%emt 00:00:02] [%clk 00:07:49]} 0-1

[Site "Europe Echecs"]